fUSD/lending_fUSD_20250208
["ID","MTS","AMOUNT","RATE_DAILY","PERIOD"]
[352288588,1739028658550,-500.0,0.0001041,2]
[352288589,1739028658560,-500.0,0.0001041,2]
[352288590,1739028658571,-500.0,0.0001041,2]
[352288591,1739028658581,-500.0,0.0001041,2]
[352288592,1739028658590,-500.0,0.0001041,2]
[352288593,1739028658599,-981.79,0.0001041,2]
[352288594,1739028658610,-500.0,0.0001041,2]
[352288595,1739028658620,-1014.37,0.0001041,2]
[352288596,1739028658630,-500.0,0.0001041,2]
[352288597,1739028658640,-1092.78,0.0001041,2]
[352288598,1739028658651,-618.07,0.0001041,2]
[352288599,1739028658662,-506.24,0.0001041,2]
[352288600,1739028658671,-500.0,0.0001041,2]
[352288601,1739028658680,-500.0,0.0001041,2]
[352288602,1739028658689,-1239.48,0.0001041,2]
[352288603,1739028658700,-500.0,0.0001041,2]
[352288604,1739028658758,-1189.9,0.0001041,2]
[352288605,1739028658767,-1172.45,0.0001041,2]
[352288606,1739028658776,-500.0,0.0001041,2]
[352288607,1739028658786,-500.0,0.0001041,2]
[352288608,1739028658795,-942.36,0.0001041,2]
[352288609,1739028658804,-500.0,0.0001041,2]
[352288610,1739028658813,-500.0,0.0001041,2]
[352288611,1739028658823,-500.0,0.0001041,2]
[352288612,1739028658832,-500.0,0.0001041,2]
[352288613,1739028658841,-639.26,0.0001041,2]
[352288614,1739028658850,-626.98,0.0001041,2]
[352288615,1739028658860,-1059.0,0.00010411,2]
[352288616,1739028658869,-154.16148571,0.00010414,2]
[352288617,1739028658878,-1000.0,0.00010418,2]
[352288618,1739028658888,-415.1775949,0.00010424,2]
[352288619,1739028658897,-1166.95,0.00010426,2]
[352288620,1739028658907,-566.57,0.00010473,2]
[352288621,1739028658916,-250.0,0.0001049,2]
[352288622,1739028658926,-163.67677193,0.000105,2]
[352288623,1739028658935,-4700.0,0.000105,3]
[352288624,1739028658945,-603.06770246,0.00010504,2]
[352288625,1739028658955,-154.16148571,0.00010536,2]
[352288626,1739028658964,-439.32935423,0.00010536,2]
[352288627,1739028658974,-308.56127328,0.00010536,2]
[352288628,1739028658983,-500.0,0.00010545,2]
[352288629,1739028658992,-500.0,0.00010545,2]
[352288630,1739028659002,-500.0,0.00010545,2]
[352288631,1739028659013,-500.0,0.00010545,2]
[352288632,1739028659022,-240.67937746,0.00010545,2]
[352288633,1739028659031,-500.0,0.00010545,2]
[352288634,1739028659041,-500.0,0.00010545,2]
[352288635,1739028659050,-500.0,0.00010545,2]
[352288636,1739028659059,-500.0,0.00010545,2]
[352288637,1739028659069,-500.0,0.00010545,2]
[352288638,1739028659078,-500.0,0.00010545,2]
[352288639,1739028659087,-551.94,0.00010545,2]
[352288640,1739028659096,-500.0,0.00010545,2]
[352288641,1739028659106,-500.0,0.00010545,2]
[352288642,1739028659115,-500.0,0.00010545,2]
[352288643,1739028659124,-500.0,0.00010545,2]
[352288644,1739028659133,-500.0,0.00010545,2]
[352288645,1739028659143,-500.0,0.00010545,2]
[352288646,1739028659152,-500.0,0.00010545,2]
[352288647,1739028659162,-500.0,0.00010545,2]
[352288648,1739028659171,-500.0,0.00010545,2]
[352288649,1739028659181,-500.0,0.00010545,2]
[352288650,1739028659191,-430.30168153,0.00010545,2]
[352288651,1739028659202,-500.0,0.00010545,2]
[352288652,1739028659211,-500.0,0.00010545,2]
[352288653,1739028659221,-1172.19,0.00010545,2]
[352288654,1739028659231,-500.0,0.00010545,2]
[352288655,1739028659240,-500.0,0.00010545,2]
[352288656,1739028659249,-500.0,0.00010545,2]
[352288657,1739028659258,-500.0,0.00010545,2]
[352288658,1739028659267,-500.0,0.00010545,2]
[352288659,1739028659276,-500.0,0.00010545,2]
[352288660,1739028659286,-500.0,0.00010545,2]
[352288661,1739028659295,-500.0,0.00010545,2]
[352288662,1739028659304,-500.0,0.00010545,2]
[352288663,1739028659313,-500.0,0.00010545,2]
[352288664,1739028659323,-500.0,0.00010545,2]
[352288665,1739028659331,-500.0,0.00010545,2]
[352288666,1739028659341,-2262.317998,0.00010545,2]
[352288667,1739028659350,-500.0,0.00010545,2]
[352288668,1739028659360,-500.0,0.00010545,2]
[352288669,1739028659370,-282.0096388,0.00010545,2]
[352288670,1739028659380,-500.0,0.00010545,2]
[352288671,1739028659389,-500.0,0.00010545,2]
[352288672,1739028659398,-500.0,0.00010545,2]
[352288673,1739028659406,-1871.601859,0.00010545,2]
[352288674,1739028659416,-500.0,0.00010545,2]
[352288675,1739028659427,-511.37,0.00010545,2]
[352288676,1739028659436,-383.15412796,0.00010545,2]
[352288677,1739028659448,-500.0,0.00010545,2]
[352288678,1739028659457,-500.0,0.00010545,2]
[352288679,1739028659466,-2492.37,0.00010545,2]
[352288680,1739028659475,-500.0,0.00010545,2]
[352288681,1739028659484,-500.0,0.00010545,2]
[352288682,1739028659493,-1367.28,0.00010545,2]
[352288683,1739028659503,-500.0,0.00010545,2]
[352288684,1739028659512,-500.0,0.00010545,2]
[352288685,1739028659522,-500.0,0.00010545,2]
[352288686,1739028659531,-500.0,0.00010545,2]
[352288687,1739028659541,-776.65,0.00010545,2]
[352288688,1739028659550,-500.0,0.00010545,2]
[352288689,1739028659562,-2122.12,0.00010545,2]
[352288690,1739028659578,-500.0,0.00010545,2]
[352288691,1739028659587,-500.0,0.00010545,2]
[352288692,1739028659596,-1602.39,0.00010545,2]
[352288693,1739028659607,-973.04,0.00010545,2]
[352288694,1739028659617,-502.79,0.00010545,2]
[352288695,1739028659626,-959.45,0.00010545,2]
[352288696,1739028659635,-1566.62,0.00010545,2]
[352288697,1739028659644,-500.0,0.00010545,2]
[352288698,1739028659656,-1053.69,0.00010545,2]
[352288699,1739028659665,-1572.34,0.00010545,2]
[352288700,1739028659674,-2608.47,0.00010545,2]
[352288701,1739028659683,-621.5,0.00010545,2]
[352288702,1739028659696,-1721.53,0.00010545,2]
[352288703,1739028659705,-1492.82,0.00010545,2]
[352288704,1739028659714,-1137.25,0.00010545,2]
[352288705,1739028659723,-1422.81,0.00010545,2]
[352288706,1739028659732,-728.42,0.00010545,2]
[352288707,1739028659741,-1340.19,0.00010545,2]
[352288708,1739028659751,-1755.98,0.00010545,2]
[352288709,1739028659759,-2960.07,0.00010545,2]
[352288710,1739028659769,-500.0,0.00010545,2]
[352288711,1739028659778,-681.74,0.00010545,2]
[352288712,1739028659787,-500.0,0.00010545,2]
[352288713,1739028659796,-8641.78,0.00010545,2]
[352288714,1739028659806,-1121.44,0.00010545,2]
[352288715,1739028659816,-1085.56,0.00010545,2]
[352288716,1739028659825,-859.16,0.00010545,2]
[352288717,1739028659834,-523.6378188,0.00010545,2]
[352288718,1739028659844,-1161.53,0.00010545,2]
[352288719,1739028659853,-1515.93,0.00010545,2]
[352288720,1739028659863,-1323.4,0.00010545,2]
[352288721,1739028659872,-1345.71,0.00010545,2]
[352288722,1739028659881,-1160.6,0.00010545,2]
[352288723,1739028659891,-500.0,0.00010545,2]
[352288724,1739028659900,-1031.19,0.00010545,2]
[352288725,1739028659909,-1853.3,0.00010545,2]
[352288726,1739028659918,-2653.97,0.00010545,2]
[352288727,1739028659927,-710.67,0.00010545,2]
[352288728,1739028659936,-500.0,0.00010545,2]
[352288729,1739028659945,-994.42,0.00010545,2]
[352288730,1739028659955,-1015.6,0.00010545,2]
[352288731,1739028659964,-1281.05,0.00010545,2]
[352288732,1739028659973,-2237.26,0.00010545,2]
[352288733,1739028659982,-1270.9,0.00010545,2]
[352288734,1739028659993,-500.0,0.00010545,2]
[352288735,1739028660003,-1901.34,0.00010545,2]
[352288736,1739028660012,-1845.74,0.00010545,2]
[352288737,1739028660022,-500.0,0.00010545,2]
[352288738,1739028660032,-1128.45,0.00010545,2]
[352288739,1739028660043,-500.0,0.00010545,2]
[352288740,1739028660053,-1567.88,0.00010545,2]
[352288741,1739028660062,-2346.46,0.00010545,2]
[352288742,1739028660072,-1580.73,0.00010545,2]
[352288743,1739028660082,-1164.35,0.00010545,2]
[352288744,1739028660091,-1616.05,0.00010545,2]
[352288745,1739028660101,-1244.53,0.00010545,2]
[352288746,1739028660110,-500.0,0.00010545,2]
[352288747,1739028660119,-1909.57,0.00010545,2]
[352288748,1739028660129,-724.54,0.00010545,2]
[352288749,1739028660138,-3113.61,0.00010545,2]
[352288750,1739028660147,-2706.3,0.00010545,2]
[352288751,1739028660157,-632.44,0.00010545,2]
[352288752,1739028660166,-500.0,0.00010545,2]
[352288753,1739028660176,-2819.15,0.00010545,2]
[352288754,1739028660186,-1753.39,0.00010545,2]
[352288755,1739028660197,-500.0,0.00010545,2]
[352288756,1739028660206,-5975.4,0.00010545,2]
[352288757,1739028660215,-1694.87,0.00010545,2]
[352288758,1739028660226,-500.0,0.00010545,2]
[352288759,1739028660235,-1212.9,0.00010545,2]
[352288760,1739028660245,-914.9,0.00010545,2]
[352288761,1739028660255,-4098.16,0.00010545,2]
[352288762,1739028660265,-500.0,0.00010545,2]
[352288763,1739028660274,-2406.98,0.00010545,2]
[352288764,1739028660284,-2459.54,0.00010545,2]
[352288765,1739028660293,-2553.13,0.00010545,2]
[352288766,1739028660302,-500.0,0.00010545,2]
[352288767,1739028660312,-510.59431188,0.00010545,2]
[352288768,1739028660322,-500.0,0.00010545,2]
[352288769,1739028660332,-2034.32,0.00010545,2]
[352288770,1739028660341,-1134.99,0.00010545,2]
[352288771,1739028660350,-1466.13,0.00010545,2]
[352288772,1739028660359,-2648.42,0.00010545,2]
[352288773,1739028660368,-500.0,0.00010545,2]
[352288774,1739028660378,-956.17,0.00010545,2]
[352288775,1739028660387,-2268.11,0.00010545,2]
[352288776,1739028660396,-1838.22,0.00010545,2]
[352288777,1739028660406,-1728.06,0.00010545,2]
[352288778,1739028660416,-2483.22,0.00010545,2]
[352288779,1739028660426,-828.54,0.00010545,2]
[352288780,1739028660436,-500.0,0.00010545,2]
[352288781,1739028660448,-1069.72,0.00010545,2]
[352288782,1739028660458,-2693.7,0.00010545,2]
[352288783,1739028660467,-500.0,0.00010545,2]
[352288784,1739028660476,-500.0,0.00010545,2]
[352288785,1739028660486,-500.0,0.00010545,2]
[352288786,1739028660495,-500.0,0.00010545,2]
[352288787,1739028660505,-1474.86,0.00010545,2]
[352288788,1739028660514,-500.0,0.00010545,2]
[352288789,1739028660524,-509.39,0.00010545,2]
[352288790,1739028660533,-1041.36,0.00010545,2]
[352288791,1739028660542,-971.21,0.00010545,2]
[352288792,1739028660552,-2117.23,0.00010545,2]
[352288793,1739028660562,-500.0,0.00010545,2]
[352288794,1739028660572,-500.0,0.00010545,2]
[352288795,1739028660582,-500.0,0.00010545,2]
[352288796,1739028660592,-500.0,0.00010545,2]
[352288797,1739028660602,-500.0,0.00010545,2]
[352288798,1739028660613,-649.22,0.00010545,2]
[352288799,1739028660623,-641.48,0.00010545,2]
[352288800,1739028660632,-677.08,0.00010545,2]
[352288801,1739028660641,-2282.73,0.00010545,2]
[352288802,1739028660651,-1913.7,0.00010545,2]
[352288803,1739028660660,-527.94,0.00010545,2]
[352288804,1739028660670,-1007.06,0.00010545,2]
[352288805,1739028660679,-1449.4,0.00010545,2]
[352288806,1739028660688,-1523.2,0.00010546,2]
[352288807,1739028660698,-711.38,0.00010546,2]
[352288808,1739028660707,-685.67,0.00010546,2]
[352288809,1739028660717,-2565.19,0.00010546,2]
[352288810,1739028660727,-500.0,0.00010546,2]
[352288811,1739028660737,-500.0,0.00010546,2]
[352288812,1739028660746,-691.85,0.00010546,2]
[352288813,1739028660755,-849.79,0.00010546,2]
[352288814,1739028660764,-500.0,0.00010546,2]
[352288815,1739028660773,-500.0,0.00010546,2]
[352288816,1739028660783,-500.0,0.00010546,2]
[352288817,1739028660792,-500.0,0.00010546,2]
[352288818,1739028660801,-1346.62,0.00010546,2]
[352288819,1739028660810,-500.0,0.00010546,2]
[352288820,1739028660820,-500.0,0.00010546,2]
[352288821,1739028660829,-641.27,0.00010546,2]
[352288822,1739028660838,-500.0,0.00010546,2]
[352288823,1739028660846,-503.79,0.00010546,2]
[352288824,1739028660855,-986.82,0.00010546,2]
[352288825,1739028660864,-500.0,0.00010546,2]
[352288826,1739028660873,-1151.05,0.00010546,2]
[352288827,1739028660883,-500.0,0.00010546,2]
[352288828,1739028660891,-500.0,0.00010546,2]
[352288829,1739028660900,-500.0,0.00010546,2]
[352288830,1739028660910,-500.0,0.00010546,2]
[352288831,1739028660919,-500.0,0.00010546,2]
[352288832,1739028660929,-500.0,0.00010546,2]
[352288833,1739028660939,-500.0,0.00010546,2]
[352288834,1739028660949,-629.25,0.00010546,2]
[352288835,1739028660958,-500.0,0.00010546,2]
[352288836,1739028660968,-500.0,0.00010546,2]
[352288837,1739028660976,-1089.46,0.00010546,2]
[352288838,1739028660986,-500.0,0.00010546,2]
[352288839,1739028660995,-744.42,0.00010546,2]
[352288840,1739028661005,-500.0,0.00010546,2]
[352288841,1739028661014,-500.0,0.00010546,2]
[352288842,1739028661023,-1158.94,0.00010546,2]
[352288843,1739028661032,-500.0,0.00010546,2]
[352288844,1739028661042,-500.0,0.00010546,2]
[352288845,1739028661052,-500.0,0.00010546,2]
[352288846,1739028661061,-977.07,0.00010546,2]
[352288847,1739028661071,-885.84,0.00010546,2]
[352288848,1739028661080,-500.0,0.00010546,2]
[352288849,1739028661089,-500.0,0.00010546,2]
[352288850,1739028661099,-575.06,0.00010546,2]
[352288851,1739028661108,-550.7,0.00010546,2]
[352288852,1739028661118,-1066.93,0.00010546,2]
[352288853,1739028661128,-500.0,0.00010546,2]
[352288854,1739028661137,-916.65,0.00010546,2]
[352288855,1739028661147,-500.0,0.00010546,2]
[352288856,1739028661157,-804.1,0.00010546,2]
[352288857,1739028661166,-500.0,0.00010546,2]
[352288858,1739028661176,-500.0,0.00010546,2]
[352288859,1739028661186,-500.0,0.00010546,2]
[352288860,1739028661195,-500.0,0.00010546,2]
[352288861,1739028661205,-500.0,0.00010546,2]
[352288862,1739028661215,-520.63,0.00010546,2]
[352288863,1739028661224,-500.0,0.00010546,2]
[352288864,1739028661234,-500.0,0.00010546,2]
[352288865,1739028661244,-547.63,0.00010546,2]
[352288866,1739028661253,-500.0,0.00010546,2]
[352288867,1739028661263,-1223.68,0.00010546,2]
[352288868,1739028661274,-500.0,0.00010546,2]
[352288869,1739028661284,-500.0,0.00010546,2]
[352288870,1739028661294,-500.0,0.00010546,2]
[352288871,1739028661303,-1043.84,0.00010546,2]
[352288872,1739028661312,-500.0,0.00010546,2]
[352288873,1739028661321,-500.0,0.00010546,2]
[352288874,1739028661331,-500.0,0.00010546,2]
[352288875,1739028661340,-500.0,0.00010546,2]
[352288876,1739028661349,-986.77,0.00010546,2]
[352288877,1739028661359,-500.0,0.00010546,2]
[352288878,1739028661368,-500.0,0.00010546,2]
[352288879,1739028661377,-500.0,0.00010546,2]
[352288880,1739028661386,-934.21,0.00010546,2]
[352288881,1739028661395,-500.0,0.00010546,2]
[352288882,1739028661404,-1252.76,0.00010546,2]
[352288883,1739028661414,-500.0,0.00010546,2]
[352288884,1739028661423,-851.2,0.00010546,2]
[352288885,1739028661432,-983.8,0.00010546,2]
[352288886,1739028661441,-633.99,0.00010546,2]
[352288887,1739028661453,-500.0,0.00010546,2]
[352288888,1739028661462,-500.0,0.00010546,2]
[352288889,1739028661471,-913.56,0.00010546,2]
[352288890,1739028661480,-500.0,0.00010546,2]
[352288891,1739028661490,-500.0,0.00010546,2]
[352288892,1739028661499,-1088.42,0.00010546,2]
[352288893,1739028661509,-947.86,0.00010546,2]
[352288894,1739028661518,-1091.33,0.00010546,2]
[352288895,1739028661528,-500.0,0.00010546,2]
[352288896,1739028661539,-1317.62,0.00010546,2]
[352288897,1739028661548,-500.0,0.00010546,2]
[352288898,1739028661558,-787.07,0.00010546,2]
[352288899,1739028661570,-500.0,0.00010546,2]
[352288900,1739028661583,-593.57,0.00010546,2]
[352288901,1739028661592,-500.0,0.00010546,2]
[352288902,1739028661602,-992.85,0.00010546,2]
[352288903,1739028661613,-508.17,0.00010546,2]
[352288904,1739028661623,-2552.46,0.00010546,2]
[352288905,1739028661632,-780.62,0.00010546,2]
[352288906,1739028661641,-548.15,0.00010546,2]
[352288907,1739028661652,-1122.93,0.00010546,2]
[352288908,1739028661661,-1101.79,0.00010546,2]
[352288909,1739028661670,-902.22,0.00010546,2]
[352288910,1739028661679,-657.05,0.00010546,2]
[352288911,1739028661688,-512.48,0.00010546,2]
[352288912,1739028661698,-500.0,0.00010546,2]
[352288913,1739028661707,-1120.42,0.00010546,2]
[352288914,1739028661716,-6693.6,0.00010546,2]
[352288915,1739028661725,-741.29,0.00010546,2]
[352288916,1739028661734,-1034.11,0.00010546,2]
[352288917,1739028661745,-675.65,0.00010546,2]
[352288918,1739028661754,-500.0,0.00010546,2]
[352288919,1739028661763,-581.86,0.00010546,2]
[352288920,1739028661772,-916.73,0.00010546,2]
[352288921,1739028661782,-731.99,0.00010546,2]
[352288922,1739028661791,-1466.25,0.00010546,2]
[352288923,1739028661800,-500.0,0.00010546,2]
[352288924,1739028661809,-500.0,0.00010546,2]
[352288925,1739028661819,-597.7,0.00010546,2]
[352288926,1739028661828,-500.0,0.00010546,2]
[352288927,1739028661838,-321.46,0.00010546,2]
[352288928,1739028661848,-1297.02,0.00010546,2]
[352288929,1739028661857,-500.0,0.00010546,2]
[352288930,1739028661867,-1028.96,0.00010546,2]
[352288931,1739028661876,-3310.98,0.00010546,2]
[352288932,1739028661886,-500.0,0.00010546,2]
[352288933,1739028661896,-500.0,0.00010546,2]
[352288934,1739028661905,-500.0,0.00010546,2]
[352288935,1739028661915,-917.91,0.00010546,2]
[352288936,1739028661924,-511.7,0.00010546,2]
[352288937,1739028661933,-500.0,0.00010546,2]
[352288938,1739028661944,-500.0,0.00010546,2]
[352288939,1739028661955,-643.43,0.00010546,2]
[352288940,1739028661965,-500.0,0.00010546,2]
[352288941,1739028661974,-539.85,0.00010546,2]
[352288942,1739028661984,-3319.49,0.00010546,2]
[352288943,1739028661994,-913.19,0.00010546,2]
[352288944,1739028662004,-500.0,0.00010546,2]
[352288945,1739028662013,-1143.68,0.00010546,2]
[352288946,1739028662023,-994.19,0.00010546,2]
[352288947,1739028662033,-954.06,0.00010546,2]
[352288948,1739028662043,-500.0,0.00010546,2]
[352288949,1739028662053,-1144.4,0.00010546,2]
[352288950,1739028662063,-500.0,0.00010546,2]
[352288951,1739028662074,-2477.27,0.00010546,2]
[352288952,1739028662084,-763.69,0.00010546,2]
[352288953,1739028662093,-500.0,0.00010546,2]
[352288954,1739028662103,-806.5,0.00010546,2]
[352288955,1739028662113,-500.0,0.00010547,2]
[352288956,1739028662123,-500.0,0.00010547,2]
[352288957,1739028662133,-500.0,0.00010547,2]
[352288958,1739028662142,-500.0,0.00010547,2]
[352288959,1739028662152,-500.0,0.00010547,2]
[352288960,1739028662162,-500.0,0.00010547,2]
[352288961,1739028662171,-559.82,0.00010547,2]
[352288962,1739028662181,-209.1945975,0.00010547,2]
[352288963,1739028662191,-500.0,0.00010547,2]
[352288964,1739028662201,-500.0,0.00010547,2]
[352288965,1739028662211,-500.0,0.00010547,2]
[352288966,1739028662220,-500.0,0.00010547,2]
[352288967,1739028662230,-500.0,0.00010547,2]
[352288968,1739028662239,-500.0,0.00010547,2]
[352288969,1739028662249,-500.0,0.00010547,2]
[352288970,1739028662258,-500.0,0.00010547,2]
[352288971,1739028662268,-500.0,0.00010547,2]
[352288972,1739028662278,-981.79,0.00010547,2]
[352288973,1739028662288,-500.0,0.00010547,2]
[352288974,1739028662297,-1014.37,0.00010547,2]
[352288975,1739028662307,-500.0,0.00010547,2]
[352288976,1739028662316,-1092.78,0.00010547,2]
[352288977,1739028662326,-618.07,0.00010547,2]
[352288978,1739028662335,-506.24,0.00010547,2]
[352288979,1739028662344,-500.0,0.00010547,2]
[352288980,1739028662354,-500.0,0.00010547,2]
[352288981,1739028662363,-1239.48,0.00010547,2]
[352288982,1739028662372,-500.0,0.00010547,2]
[352288983,1739028662382,-1189.9,0.00010547,2]
[352288984,1739028662391,-1172.45,0.00010547,2]
[352288985,1739028662401,-500.0,0.00010547,2]
[352288986,1739028662410,-500.0,0.00010547,2]
[352288987,1739028662419,-942.36,0.00010547,2]
[352288988,1739028662429,-500.0,0.00010547,2]
[352288989,1739028662439,-365.71015614,0.00010547,2]
[352288990,1739028662450,-500.0,0.00010547,2]
[352288991,1739028662460,-500.0,0.00010547,2]
[352288992,1739028662469,-639.26,0.00010547,2]
[352288993,1739028662480,-626.98,0.00010547,2]
[352288994,1739028662496,-2448.0,0.0001059,2]
[352288995,1739028662506,-900.0,0.000106,3]
[352288996,1739028662516,-373.0,0.00010603,2]
[352288997,1739028662529,-566.57,0.0001061,2]
[352288998,1739028662540,-154.16148571,0.00010657,2]
[352288999,1739028662550,-500.0,0.00010682,2]
[352289000,1739028662561,-500.0,0.00010682,2]
[352289001,1739028662573,-500.0,0.00010682,2]
[352289002,1739028662584,-500.0,0.00010682,2]
[352289003,1739028662595,-500.0,0.00010682,2]
[352289004,1739028662607,-500.0,0.00010682,2]
[352289005,1739028662617,-500.0,0.00010682,2]
[352289006,1739028662627,-500.0,0.00010682,2]
[352289007,1739028662637,-500.0,0.00010682,2]
[352289008,1739028662648,-551.94,0.00010682,2]
[352289009,1739028662659,-500.0,0.00010682,2]
[352289010,1739028662669,-500.0,0.00010682,2]
[352289011,1739028662680,-500.0,0.00010682,2]
[352289012,1739028662690,-500.0,0.00010682,2]
[352289013,1739028662704,-500.0,0.00010682,2]
[352289014,1739028662714,-500.0,0.00010682,2]
[352289015,1739028662725,-500.0,0.00010682,2]
[352289016,1739028662736,-500.0,0.00010682,2]
[352289017,1739028662746,-500.0,0.00010682,2]
[352289018,1739028662756,-500.0,0.00010682,2]
[352289019,1739028662771,-500.0,0.00010682,2]
[352289020,1739028662781,-1172.19,0.00010682,2]
[352289021,1739028662791,-500.0,0.00010682,2]
[352289022,1739028662802,-500.0,0.00010682,2]
[352289023,1739028662812,-500.0,0.00010682,2]
[352289024,1739028662821,-500.0,0.00010682,2]
[352289025,1739028662831,-500.0,0.00010682,2]
[352289026,1739028662842,-500.0,0.00010682,2]
[352289027,1739028662853,-500.0,0.00010682,2]
[352289028,1739028662863,-500.0,0.00010682,2]
[352289029,1739028662873,-500.0,0.00010682,2]
[352289030,1739028662883,-500.0,0.00010682,2]
[352289031,1739028662894,-500.0,0.00010682,2]
[352289032,1739028662904,-500.0,0.00010682,2]
[352289033,1739028662914,-2262.317998,0.00010682,2]
[352289034,1739028662924,-500.0,0.00010682,2]
[352289035,1739028662934,-500.0,0.00010682,2]
[352289036,1739028662945,-155.290179,0.00010682,2]
[352289037,1739028662958,-500.0,0.00010682,2]
[352289038,1739028662968,-500.0,0.00010682,2]
[352289039,1739028662977,-500.0,0.00010682,2]
[352289040,1739028662988,-1871.601859,0.00010682,2]
[352289041,1739028662998,-632.01139884,0.00010682,2]
[352289042,1739028663009,-511.37,0.00010682,2]
[352289043,1739028663019,-500.0,0.00010682,2]
[352289044,1739028663030,-500.0,0.00010682,2]
[352289045,1739028663040,-2492.37,0.00010682,2]
[352289046,1739028663051,-500.0,0.00010682,2]
[352289047,1739028663062,-500.0,0.00010682,2]
[352289048,1739028663071,-1367.28,0.00010682,2]
[352289049,1739028663082,-500.0,0.00010682,2]
[352289050,1739028663093,-500.0,0.00010682,2]
[352289051,1739028663104,-500.0,0.00010682,2]
[352289052,1739028663115,-776.65,0.00010682,2]
[352289053,1739028663127,-500.0,0.00010682,2]
[352289054,1739028663138,-2122.12,0.00010682,2]
[352289055,1739028663148,-500.0,0.00010682,2]
[352289056,1739028663159,-500.0,0.00010682,2]
[352289057,1739028663170,-1602.39,0.00010682,2]
[352289058,1739028663180,-973.04,0.00010682,2]
[352289059,1739028663191,-502.79,0.00010682,2]
[352289060,1739028663206,-959.45,0.00010682,2]
[352289061,1739028663217,-1566.62,0.00010682,2]
[352289062,1739028663228,-500.0,0.00010682,2]
[352289063,1739028663239,-1053.69,0.00010682,2]
[352289064,1739028663250,-1572.34,0.00010682,2]
[352289065,1739028663261,-2608.47,0.00010682,2]
[352289066,1739028663272,-621.5,0.00010682,2]
[352289067,1739028663283,-1721.53,0.00010682,2]
[352289068,1739028663294,-1492.82,0.00010682,2]
[352289069,1739028663304,-1137.25,0.00010682,2]
[352289070,1739028663315,-1422.81,0.00010682,2]
[352289071,1739028663325,-728.42,0.00010682,2]
[352289072,1739028663336,-1340.19,0.00010682,2]
[352289073,1739028663347,-1755.98,0.00010682,2]
[352289074,1739028663357,-2960.07,0.00010682,2]
[352289075,1739028663367,-500.0,0.00010682,2]
[352289076,1739028663379,-681.74,0.00010682,2]
[352289077,1739028663390,-500.0,0.00010682,2]
[352289078,1739028663401,-8641.78,0.00010682,2]
[352289079,1739028663412,-1121.44,0.00010682,2]
[352289080,1739028663423,-1085.56,0.00010682,2]
[352289081,1739028663433,-859.16,0.00010682,2]
[352289082,1739028663444,-1161.53,0.00010682,2]
[352289083,1739028663456,-1515.93,0.00010682,2]
[352289084,1739028663467,-1323.4,0.00010682,2]
[352289085,1739028663478,-1345.71,0.00010682,2]
[352289086,1739028663489,-1160.6,0.00010682,2]
[352289087,1739028663500,-500.0,0.00010682,2]